bitfinex/quotes_ETHUSD_20220220
["timestamp","ask_amount","ask_price","bid_price","bid_amount"]
[1645381309205,11.51,2655.6,2654.3,4.68486305]
[1645381309404,11.51,2655.6,2654.3,1.90686305]
[1645381309604,1.15782692,2655.3,2654.6,1.15779108]
[1645381309812,11.51,2655.7,2654.6,1.15779108]
[1645381310203,3.5,2655.6,2654.6,1.15779108]
[1645381310407,1.4119,2655.9,2654.6,1.15779108]
[1645381310408,11.51,2655.7,2654.6,1.15779108]
[1645381310804,4.44253,2655.8,2654.6,1.15779108]
[1645381310805,3.5,2655.6,2654.6,1.15779108]
[1645381311003,1.15389063,2655.5,2654.6,1.15779108]
[1645381311206,1.15389063,2655.5,2655.0,0.0023076]
[1645381311408,3.5,2655.8,2655.0,0.0023076]
[1645381311608,0.1882,2655.9,2655.0,0.0023076]
[1645381312207,3.5,2656.0,2654.6,1.15779108]
[1645381312405,0.1882,2655.8,2655.3,0.00230748]
[1645381312605,11.51,2655.6,2655.3,0.00230748]
[1645381312808,15.1982,2655.6,2655.3,0.00230748]
[1645381313059,3.6882,2655.6,2655.3,0.00230748]
[1645381313254,0.1882,2655.6,2655.3,0.00230748]
[1645381313455,0.1882,2655.6,2655.0,3.8]
[1645381313656,3.6882,2655.6,2655.3,0.00230748]
[1645381313855,0.1882,2655.6,2655.3,0.00230748]
[1645381314254,15.1982,2655.6,2655.3,0.00230748]
[1645381314457,11.6982,2655.6,2655.3,0.00230748]
[1645381314655,0.1882,2655.6,2655.0,3.8]
[1645381314856,0.1882,2655.6,2655.3,0.00230748]
[1645381315055,0.1882,2655.6,2655.0,3.78270748]
[1645381315955,1.17726276,2655.7,2655.0,3.78270748]
[1645381316158,0.98906276,2655.7,2655.0,3.78270748]
[1645381317799,1.09893089,2655.3,2655.0,3.78270748]
[1645381319701,1.09893089,2655.3,2655.0,3.78501508]
[1645381321757,1.09893089,2655.3,2655.0,3.78270748]
[1645381321957,15.1982,2655.8,2655.0,3.78501508]
[1645381322959,1.11298005,2655.2,2655.0,3.78270748]
[1645381323363,6.49326418,2655.2,2655.0,3.78270748]
[1645381324602,6.49326418,2655.2,2655.0,3.7850151]
[1645381325406,3.5,2655.1,2655.0,3.78270748]
[1645381325610,24.51,2655.0,2654.0,1.1424]
[1645381325805,15.01,2654.9,2653.9,2.3021]
[1645381326008,15.01,2654.9,2654.1,0.00283424]
[1645381326203,15.01,2654.9,2653.9,0.00283424]
[1645381326504,15.01,2654.9,2653.5,1.1922]
[1645381326505,1.18352223,2654.2,2653.6,0.00283424]
[1645381328057,1.18352223,2654.2,2653.8,0.00222243]
[1645381328460,3.75,2654.7,2653.8,0.00222243]
[1645381328664,0.1882,2654.6,2653.8,0.00222243]
[1645381328864,3.6882,2654.6,2653.8,0.00222243]
[1645381329059,15.4982,2654.6,2653.6,0.00283424]
[1645381329361,15.4982,2654.6,2654.1,0.00222229]
[1645381329362,3.6882,2654.6,2654.1,0.00222229]
[1645381329559,0.92942859,2654.4,2654.1,0.00222229]
[1645381330160,0.92942859,2654.4,2653.6,0.00283424]
[1645381330360,0.92942859,2654.4,2654.1,0.00222229]
[1645381330964,0.92942859,2654.4,2653.5,0.76913213]
[1645381331165,0.1882,2654.6,2653.5,0.76913213]
[1645381331360,0.1882,2654.6,2653.5,1.06913213]
[1645381331562,0.25,2654.7,2653.5,1.36913213]
[1645381332201,0.25,2654.7,2653.5,0.76913213]
[1645381332403,0.93589922,2654.4,2653.5,0.76913213]
[1645381333009,0.0021048,2654.2,2653.6,0.00210533]
[1645381333812,0.93589922,2654.4,2653.5,1.06913213]
[1645381334003,0.00210474,2654.2,2653.6,0.00210525]
[1645381335004,1.6371,2654.7,2653.5,1.06913213]
[1645381335205,0.00210474,2654.2,2653.6,0.00210525]
[1645381335465,1.6371,2654.7,2654.2,0.00239574]
[1645381335653,1.3871,2654.7,2654.2,0.00239574]
[1645381335853,1.03412903,2654.6,2654.2,0.00239574]
[1645381339057,1.22232903,2654.6,2654.2,0.00239574]
[1645381340102,0.00231012,2654.5,2654.2,0.00239574]
[1645381340903,1.22232903,2654.6,2654.2,0.00239574]
[1645381341304,0.00231014,2654.5,2654.2,0.00239574]
[1645381342307,1.03412903,2654.6,2654.2,0.00239574]
[1645381342507,0.98643917,2654.6,2654.2,0.00239574]
[1645381342709,3.5,2654.5,2654.2,0.00239574]
[1645381343952,11.51,2654.4,2654.2,0.00239574]
[1645381344153,3.5,2654.5,2654.2,0.00239574]
[1645381344954,0.1882,2654.4,2654.2,0.00239574]
[1645381345152,11.6982,2654.4,2654.2,0.00239574]
[1645381345351,11.51,2654.3,2654.2,0.00239574]
[1645381345758,0.1882,2654.4,2654.2,0.00239574]
[1645381346157,11.6982,2654.4,2654.2,0.00239574]
[1645381346453,0.1882,2654.4,2654.2,0.00239574]
[1645381347509,1.3805,2654.4,2654.2,0.00239574]
[1645381347910,1.3805,2654.4,2654.2,3.80239574]
[1645381348112,0.1882,2654.4,2654.2,3.80239574]
[1645381348311,11.6982,2654.4,2654.2,3.80239574]
[1645381348510,16.01,2654.3,2654.2,3.80239574]
[1645381348710,15.01,2654.3,2654.2,3.80239574]
[1645381348911,15.61,2654.3,2654.2,3.80239574]
[1645381349113,15.61,2654.3,2654.2,2.18765315]
[1645381349114,17.498,2654.3,2654.2,2.18765315]
[1645381349312,11.51,2654.1,2653.0,0.00281995]
[1645381349517,11.51,2653.9,2653.0,0.00281995]
[1645381349713,3.5,2653.8,2653.4,0.009244]
[1645381349920,11.51,2653.6,2653.4,0.009244]
[1645381350221,12.11,2653.6,2653.4,0.009244]
[1645381350464,12.11,2653.6,2653.4,4.4e-05]
[1645381350653,16.1984,2653.5,2652.3,0.00281995]
[1645381350852,16.1984,2653.5,2653.4,0.00106333]
[1645381351051,12.9984,2653.5,2653.4,6.333e-05]
[1645381351252,12.9984,2653.5,2653.0,0.00425396]
[1645381351253,11.51,2653.3,2653.0,0.00425396]
[1645381351652,3.9798,2653.4,2653.0,0.00425396]
[1645381351653,11.51,2653.1,2653.0,0.00425396]
[1645381351852,11.51,2653.1,2651.6,0.00281995]
[1645381352163,1.1555,2653.1,2652.3,0.00281995]
[1645381352454,1.1555,2653.1,2651.9,1.60241084]
[1645381352654,1.1555,2653.1,2651.9,1.60523079]
[1645381353053,1.1555,2653.1,2651.9,2.60523079]
[1645381353054,15.01,2653.0,2651.9,2.60523079]
[1645381353260,0.95420296,2652.6,2652.0,1.60241084]
[1645381353555,0.95420296,2652.6,2652.1,1.60523079]
[1645381353753,0.95420296,2652.6,2651.9,0.00281995]
[1645381353953,0.95420296,2652.6,2651.9,1.60529025]
[1645381354200,3.5,2653.0,2652.0,1.6024703]
[1645381354201,11.51,2652.8,2652.0,1.6024703]
[1645381354402,3.5,2653.0,2652.1,1.60760186]
[1645381354602,3.5,2653.0,2652.1,0.00231161]
[1645381354808,3.5,2653.0,2652.2,0.00281995]
[1645381355102,3.5,2653.0,2652.1,0.00231161]
[1645381355303,3.6884,2653.0,2652.4,1.04748572]
[1645381355507,0.1884,2653.0,2651.9,0.00281995]
[1645381355702,0.1884,2653.0,2652.1,0.00281995]
[1645381355703,3.6884,2653.0,2652.1,0.00281995]
[1645381356006,0.1884,2653.0,2651.7,2.60520649]
[1645381356203,15.1984,2653.0,2651.8,1.60520649]
[1645381356602,15.1984,2653.0,2651.8,2.69227191]
[1645381356603,0.87134683,2652.5,2651.8,2.69227191]
[1645381356803,0.87134683,2652.5,2651.8,1.08988537]
[1645381357607,4.8677,2652.9,2651.8,1.08988537]
[1645381357808,4.8677,2652.9,2651.9,1.60256257]
[1645381358066,0.1885,2652.9,2652.0,0.00281995]
[1645381358267,0.1885,2653.1,2652.0,1.60538252]
[1645381358558,11.6985,2653.1,2652.2,1.13091898]
[1645381358759,0.1885,2653.1,2652.2,1.13091898]
[1645381358959,0.1885,2653.1,2652.3,0.00281995]
[1645381359257,0.1885,2653.1,2652.5,0.00230881]
[1645381359457,3.9384,2653.2,2652.5,0.00230881]
[1645381359658,16.0484,2653.2,2652.5,0.00230881]
[1645381359859,3.9384,2653.2,2652.5,0.00230881]
[1645381360066,0.4384,2653.2,2652.5,0.00230881]
[1645381360261,0.25,2653.2,2652.3,0.00281995]
[1645381360460,0.25,2653.2,2652.7,0.00230873]
[1645381360660,3.2055,2653.3,2652.7,0.00230873]
[1645381361059,1.13507817,2653.2,2652.7,0.00230873]
[1645381361465,6.7903,2653.6,2652.5,0.00281995]
[1645381361709,3.2903,2653.6,2652.8,0.0023087]
[1645381361908,3.1019,2653.6,2652.8,0.0023087]
[1645381362507,0.98784533,2653.5,2652.8,1.07086717]
[1645381362715,0.98784533,2653.5,2652.8,1.06855847]
[1645381362909,0.98784533,2653.5,2653.1,0.0023086]
[1645381363909,0.98784533,2653.5,2652.6,0.00281995]
[1645381364211,0.98784533,2653.5,2653.2,0.00230856]
[1645381365009,0.98784533,2653.5,2652.6,0.00281995]
[1645381365212,3.5,2653.7,2652.6,0.00281995]
[1645381365465,3.5,2653.7,2653.2,0.00230854]
[1645381365752,14.69170805,2653.8,2653.2,0.00230854]
[1645381366254,0.99342988,2653.3,2652.7,0.00281995]
[1645381366453,0.99342988,2653.3,2652.6,0.00923657]
[1645381366755,0.99342988,2653.3,2652.6,0.01205652]
[1645381367552,0.99342988,2653.3,2652.6,0.00281995]
[1645381367757,0.99342988,2653.3,2652.8,0.0023087]
[1645381368153,3.78170786,2653.8,2652.8,0.0023087]
[1645381368355,0.1884,2653.7,2652.8,0.0023087]
[1645381368554,0.1884,2653.7,2652.8,0.00281995]
[1645381368754,0.1884,2653.7,2652.5,0.00281995]
[1645381368953,3.6884,2653.7,2652.5,0.00281995]
[1645381369205,1.10734389,2653.4,2652.5,0.00281995]
[1645381370601,1.10734389,2653.4,2652.5,3.80281995]
[1645381370808,1.10734389,2653.4,2652.6,0.00281995]
[1645381371304,1.10734389,2653.4,2652.7,0.00230883]
[1645381372205,1.10734389,2653.4,2652.6,0.00281995]
[1645381372605,1.10734389,2653.4,2652.7,0.00230887]
[1645381372966,1.10734389,2653.4,2652.8,1.04251437]
[1645381373156,1.10734389,2653.4,2652.8,1.04533432]
[1645381373359,1.10734389,2653.4,2652.8,0.00281995]
[1645381373556,1.10734389,2653.4,2652.6,0.00281995]
[1645381373756,1.10734389,2653.4,2652.7,0.0023089]
[1645381374756,1.10734389,2653.4,2652.6,0.9175072]
[1645381374958,1.10734389,2653.4,2652.7,0.00512882]
[1645381375656,0.00230814,2653.5,2652.7,0.00512882]
[1645381375956,3.5,2653.7,2652.7,0.00281995]
[1645381376157,0.00230814,2653.5,2652.7,0.00512882]
[1645381376805,0.86521339,2653.5,2652.7,0.00512882]
[1645381377004,0.86290525,2653.5,2652.7,0.00281995]
[1645381377404,0.86290525,2653.5,2652.7,0.00512885]
[1645381377405,0.86521341,2653.5,2652.7,0.00512885]
[1645381377603,0.00230816,2653.5,2652.7,0.00512885]
[1645381378204,3.3678,2653.8,2652.7,0.00281995]
[1645381378605,0.00230816,2653.5,2652.7,0.00512885]
[1645381378909,0.00230816,2653.5,2653.0,1.13043453]
[1645381379106,0.00230816,2653.5,2653.0,1.13325448]
[1645381379510,1.06414698,2653.7,2653.0,1.13325448]
[1645381379706,0.00230823,2653.5,2653.0,1.13325448]
[1645381379911,0.00230823,2653.5,2653.1,3.50281995]
[1645381380117,0.25,2653.9,2653.5,0.00252833]
[1645381380309,0.25,2653.9,2653.5,0.04833778]
[1645381380568,0.5,2654.6,2653.5,0.04833778]
[1645381380765,0.5,2654.6,2653.5,0.34833778]
[1645381380960,0.8642784,2654.2,2653.6,0.00281995]
[1645381381759,0.8642784,2654.2,2653.5,0.04833778]
[1645381382160,1.1873108,2653.8,2653.5,0.04833778]
[1645381382760,0.00126014,2654.0,2653.5,0.04833778]
[1645381383164,3.3094,2654.4,2653.5,0.04833778]
[1645381383361,0.00212896,2653.9,2653.5,0.04833778]
[1645381384203,0.88861595,2654.0,2653.5,0.04833778]
[1645381384608,0.00212898,2653.8,2653.5,0.04833778]
[1645381384810,0.00212898,2653.8,2653.5,0.05115773]
[1645381385509,3.4978,2654.4,2653.5,0.05115773]
[1645381385710,1.08443892,2654.3,2653.5,0.05115773]
[1645381385904,0.002129,2653.8,2653.5,0.05115773]
[1645381386705,1.08443892,2654.3,2653.5,0.05115773]
[1645381387105,0.002129,2653.8,2653.5,0.05115773]
[1645381387962,1.08443892,2654.3,2653.5,0.05115773]
[1645381388152,0.00192649,2653.8,2653.5,0.05115773]
[1645381389052,1.08443892,2654.3,2653.5,0.05115773]
[1645381389253,0.00192649,2653.8,2653.5,0.05115773]
[1645381390254,2.0415321,2654.3,2653.5,0.00534828]
[1645381390457,0.95709318,2654.1,2653.5,0.00252833]
[1645381390656,0.00192649,2653.8,2653.5,0.00252833]
[1645381391451,0.00192649,2653.8,2653.6,1.01532457]
[1645381392711,3.3094,2654.4,2653.6,1.01532457]
[1645381392913,3.3094,2654.4,2653.7,1.60174817]
[1645381393112,0.00196286,2653.8,2653.7,1.60174817]
[1645381393512,0.00196286,2653.8,2653.6,1.01532457]
[1645381394011,3.3094,2654.4,2653.6,1.01532457]
[1645381394211,0.00196286,2653.8,2653.6,1.01532457]
[1645381394611,0.00196286,2653.8,2653.6,4.81532457]
[1645381395011,3.3094,2654.4,2653.6,4.81532457]
[1645381395213,3.3094,2654.4,2653.7,1.60172053]
[1645381395473,0.00196286,2653.8,2653.7,1.60172053]
[1645381395665,0.00196286,2653.8,2653.6,4.81532457]
[1645381395864,0.00196286,2653.8,2653.7,2.60169257]
[1645381396268,0.25,2654.5,2653.7,2.60169257]
[1645381396461,0.25,2654.5,2653.7,4.5]
[1645381396665,0.00195631,2653.9,2653.8,1.60165002]
[1645381396863,0.00195631,2653.9,2653.8,1.3]
[1645381397265,0.00195631,2653.9,2653.8,0.3]
[1645381397465,2.0637004,2654.7,2653.8,0.3]
[1645381397466,3.02079358,2654.7,2653.8,0.3]
[1645381397668,2.0637004,2654.7,2653.7,1.3]
[1645381397866,0.00195628,2654.0,2653.7,1.3]
[1645381398770,0.95709318,2654.6,2653.7,1.3]
[1645381398967,0.00195628,2654.0,2653.7,1.3]
[1645381399809,0.00195628,2654.0,2653.7,4.8]
[1645381400013,0.1884,2654.7,2653.7,4.8]
[1645381400014,0.1884,2654.7,2653.8,1.60164744]
[1645381400209,1.20709318,2654.8,2653.8,1.60164744]
[1645381400210,0.00195744,2654.0,2653.9,3.8]
[1645381400409,0.25,2654.8,2654.0,0.00214384]
[1645381400810,0.95709318,2654.8,2654.0,0.00214384]
[1645381401010,0.97143572,2654.7,2654.0,1.07587234]
[1645381401210,0.97143572,2654.7,2654.0,0.00214384]
[1645381401419,6.35171985,2654.7,2654.0,0.00214384]
[1645381401613,0.95709318,2654.6,2654.0,0.00214384]
[1645381401811,0.95709318,2654.5,2654.0,0.00214384]
[1645381402618,0.88307677,2654.1,2654.0,0.00214384]
[1645381407013,0.88307677,2654.1,2654.0,4.384e-05]
[1645381407014,12.69307677,2654.1,2654.0,4.384e-05]
[1645381407214,14.31356412,2654.1,2654.0,4.384e-05]
[1645381407515,12.88127677,2654.1,2654.0,4.384e-05]
[1645381408913,13.43288342,2654.1,2654.0,4.384e-05]
[1645381409216,0.1882,2654.1,2654.0,4.384e-05]
[1645381409413,1.14451276,2654.1,2654.0,4.384e-05]
[1645381409613,0.95631276,2654.1,2654.0,4.384e-05]
[1645381410013,0.1882,2654.1,2654.0,4.384e-05]
[1645381410468,0.95637531,2654.1,2654.0,4.384e-05]
[1645381411260,1.43454583,2654.1,2654.0,4.384e-05]
[1645381411662,1.43685386,2654.2,2654.0,4.384e-05]
[1645381411963,1.43454583,2654.2,2654.0,4.384e-05]
[1645381412260,1.43685386,2654.2,2654.0,4.384e-05]
[1645381413160,11.51,2654.1,2654.0,4.384e-05]
[1645381413358,1.43685384,2654.2,2654.0,4.384e-05]
[1645381414205,1.43454583,2654.3,2654.0,4.384e-05]
[1645381414408,1.43454583,2654.2,2654.0,4.384e-05]
[1645381414609,1.43685384,2654.2,2654.0,4.384e-05]
[1645381415007,12.94685384,2654.2,2654.0,4.384e-05]
[1645381415207,1.43685384,2654.2,2654.0,4.384e-05]
[1645381415606,12.94454583,2654.2,2654.0,4.384e-05]
[1645381415806,12.94685384,2654.2,2654.0,4.384e-05]
[1645381416706,12.94454583,2654.2,2654.0,4.384e-05]
[1645381417212,12.94685384,2654.2,2654.0,4.384e-05]
[1645381418062,1.43454583,2654.2,2654.0,4.384e-05]
[1645381418261,12.94685384,2654.2,2654.0,4.384e-05]
[1645381419061,12.94454583,2654.2,2654.0,4.384e-05]
[1645381419462,12.94685384,2654.2,2654.0,4.384e-05]
[1645381419866,12.36477087,2654.1,2654.0,4.384e-05]
[1645381420463,11.51,2654.1,2654.0,4.384e-05]
[1645381420662,1.43685386,2654.2,2654.0,4.384e-05]
[1645381421463,1.43454583,2654.2,2654.0,4.384e-05]
[1645381421707,1.43454583,2654.1,2654.0,4.384e-05]
[1645381421905,12.94454583,2654.1,2654.0,4.384e-05]
[1645381422706,12.94591627,2654.1,2654.0,4.384e-05]
[1645381423111,14.09712924,2654.1,2654.0,4.384e-05]
[1645381423307,14.09697815,2654.1,2654.0,4.384e-05]
[1645381423507,12.66121297,2654.1,2654.0,4.384e-05]
[1645381424508,11.51211189,2654.2,2654.0,4.384e-05]
[1645381424709,1.4356904,2654.1,2654.0,4.384e-05]
[1645381424912,13.42210438,2654.2,2654.0,4.384e-05]
[1645381425116,13.41999249,2654.2,2654.0,4.384e-05]
[1645381425558,12.5289258,2654.1,2654.0,4.384e-05]
[1645381427661,14.43891829,2654.1,2654.0,4.384e-05]
[1645381428061,12.5289258,2654.1,2654.0,4.384e-05]
[1645381428860,14.43891829,2654.1,2654.0,4.384e-05]
[1645381429504,12.5289258,2654.1,2654.0,4.384e-05]
[1645381429904,14.43891829,2654.1,2654.0,4.384e-05]
[1645381430907,11.51,2653.9,2653.6,3.8]
[1645381431109,12.94513144,2653.8,2653.6,3.8]
[1645381431308,1.13574395,2653.7,2653.6,3.8]
[1645381437712,1.43659737,2654.0,2653.6,3.8]
[1645381437912,0.95607807,2653.7,2653.6,3.8]
[1645381438113,0.95607807,2653.8,2653.6,3.8]
[1645381438319,0.957544,2654.0,2653.6,3.8]
[1645381438513,0.00146593,2654.0,2653.6,3.8]
[1645381438711,0.957544,2654.0,2653.6,3.8]
[1645381438913,0.00146593,2654.0,2653.6,3.8]
[1645381445206,1.02625835,2653.8,2653.6,3.8]
[1645381445409,0.957544,2654.0,2653.6,3.8]
[1645381445607,0.00146593,2654.0,2653.6,3.8]
[1645381445807,0.957544,2654.0,2653.6,3.8]
[1645381446413,0.00146593,2654.0,2653.6,3.8]
[1645381447007,1.08743375,2653.9,2653.6,3.8]
[1645381448458,1.08225331,2653.9,2653.6,3.8]
[1645381448660,0.00146593,2654.0,2653.6,3.8]
[1645381450358,0.957544,2654.0,2653.6,3.8]
[1645381451164,1.1759994,2653.9,2653.6,3.8]
[1645381451561,0.957544,2654.0,2653.6,3.8]
[1645381453010,0.95607807,2653.9,2653.6,3.8]
[1645381453209,0.95607807,2653.8,2653.6,3.8]
[1645381453609,0.95607807,2653.9,2653.6,3.8]
[1645381454211,0.00146593,2654.0,2653.6,3.8]
[1645381454212,0.95607807,2653.8,2653.6,3.8]
[1645381454913,1.07253189,2653.7,2653.6,3.8]
[1645381456163,2.02860996,2653.7,2653.6,3.8]
[1645381456963,2.02730377,2653.7,2653.6,3.8]
[1645381457765,1.0712257,2653.7,2653.6,3.8]
[1645381459215,0.95607807,2653.9,2653.6,3.8]
[1645381459416,0.00146593,2654.0,2653.6,3.8]
[1645381459812,5.38175006,2654.0,2653.6,3.8]
[1645381460816,5.38175006,2654.0,2653.7,1.60189163]
[1645381461215,5.38175006,2654.0,2653.6,3.8]
[1645381463075,5.38175006,2654.0,2653.7,5.10185411]
[1645381463381,5.38175006,2654.0,2653.6,3.8]
[1645381463573,5.38175006,2654.0,2653.7,1.60179711]
[1645381464076,5.38175006,2654.0,2653.6,3.8]
[1645381466710,5.38175006,2654.0,2653.7,1.60183529]
[1645381466913,5.38175006,2654.0,2653.6,3.8]
[1645381467315,6.31390332,2654.0,2653.6,3.8]
[1645381467910,6.31390332,2654.0,2653.7,1.60182622]
[1645381468508,5.38175006,2654.0,2653.7,1.60182622]
[1645381473765,5.38175006,2654.0,2653.6,3.8]
[1645381481571,5.33175006,2654.0,2653.6,3.8]
[1645381482007,0.00146593,2654.0,2653.6,3.8]
[1645381487766,0.00146593,2654.0,2653.7,4.5]
[1645381487970,0.00146593,2654.0,2653.8,0.91462229]
[1645381488163,0.00146593,2654.0,2653.9,3.5]
[1645381488363,0.00146593,2654.0,2653.9,4.8]
[1645381488563,0.00146593,2654.0,2653.9,4.7896468]
[1645381488866,6.593e-05,2654.0,2653.9,5.0896468]
[1645381489062,6.593e-05,2654.0,2653.9,5.2778468]
[1645381493064,6.593e-05,2654.0,2653.9,5.84829838]
[1645381493659,6.593e-05,2654.0,2653.9,7.44950789]
[1645381496364,6.593e-05,2654.0,2653.9,8.15667094]
[1645381496808,6.593e-05,2654.0,2653.9,15.69257094]
[1645381497010,6.593e-05,2654.0,2653.9,16.81280727]
[1645381498010,6.593e-05,2654.0,2653.9,14.98540789]
[1645381498215,6.593e-05,2654.0,2653.9,16.81280727]
[1645381498811,6.593e-05,2654.0,2653.9,28.32280727]
[1645381499012,6.593e-05,2654.0,2653.9,29.02997032]
[1645381499413,6.593e-05,2654.0,2653.9,28.32280727]
[1645381499613,6.593e-05,2654.0,2653.9,29.02997032]
[1645381500214,0.00383289,2654.6,2654.0,34.51]
[1645381500470,0.00383289,2654.6,2654.5,1.09242382]
[1645381500664,0.83846444,2655.5,2654.9,0.86139046]
[1645381500868,0.00383289,2655.4,2654.9,0.86139046]
[1645381501266,0.00383289,2655.4,2654.9,1.16139046]
[1645381502265,0.00383289,2655.6,2654.9,1.16139046]
[1645381503470,0.00383289,2655.6,2655.3,0.90880702]
[1645381503667,0.00383289,2655.8,2655.3,0.90880702]
[1645381504715,0.00231032,2655.7,2655.0,1.6]
[1645381504919,0.00231032,2655.7,2655.0,0.6]
[1645381505318,0.00231032,2655.7,2655.0,0.3]
[1645381505517,0.00231032,2655.7,2654.8,1.7793]
[1645381505719,1.00718145,2655.8,2655.1,0.86034726]
[1645381505919,0.0023104,2655.5,2655.1,1.16034726]
[1645381506122,0.0023104,2655.5,2655.1,1.46034726]
[1645381506919,0.00383289,2655.7,2655.1,1.46034726]
[1645381507122,0.00231042,2655.4,2655.1,1.46034726]
[1645381508061,0.00383289,2655.7,2655.1,1.46034726]
[1645381508260,0.00231044,2655.4,2655.1,1.46034726]
[1645381509060,0.00231044,2655.4,2655.1,4.96034726]
[1645381509263,0.00383289,2655.9,2655.2,1.0]
[1645381509463,0.00231044,2655.4,2655.1,4.66034726]
[1645381510464,0.00383289,2655.9,2655.1,4.66034726]
[1645381510663,0.00231044,2655.4,2655.1,4.66034726]
[1645381511715,0.00383289,2655.9,2655.1,4.66034726]
[1645381511916,0.00231044,2655.4,2655.1,4.66034726]
[1645381512915,0.00383289,2655.9,2655.1,4.66034726]
[1645381513118,0.00231044,2655.4,2655.1,4.66034726]
[1645381514116,0.00383289,2655.9,2655.1,4.66034726]
[1645381514319,0.00383289,2655.9,2655.5,0.9840902]
[1645381514518,0.19203289,2656.1,2655.1,3.8]
[1645381514817,0.00383289,2655.9,2655.1,3.8]
[1645381515474,0.00231034,2655.6,2655.1,3.8]
[1645381516469,0.95991096,2655.9,2655.1,3.8]
[1645381516664,0.0023104,2655.5,2655.1,3.8]
[1645381517563,0.00383289,2655.7,2655.1,3.8]
[1645381517965,0.00231042,2655.4,2655.1,3.8]
[1645381518768,0.95607807,2655.4,2655.1,3.8]
[1645381519224,0.95838851,2655.4,2655.1,3.8]
[1645381519825,0.9602046,2655.3,2655.1,3.8]
[1645381521631,0.96251506,2655.3,2655.1,3.8]
[1645381522026,0.00231046,2655.3,2655.1,3.8]
[1645381522427,1.14427807,2655.5,2655.1,3.8]
[1645381522627,0.00223248,2655.3,2655.1,3.8]
[1645381523076,0.84943625,2655.3,2655.1,3.8]
[1645381523678,0.84720377,2655.3,2655.1,3.8]
[1645381523877,0.84943625,2655.3,2655.1,3.8]
[1645381524084,0.95831055,2655.3,2655.1,3.8]
[1645381524579,0.00223248,2655.3,2655.1,3.8]
[1645381524783,0.95607807,2655.3,2655.1,3.8]
[1645381525180,0.00223248,2655.3,2655.1,3.8]
[1645381525581,0.95831055,2655.3,2655.1,3.8]
[1645381525984,0.95607807,2655.2,2655.1,3.8]
[1645381529017,0.00231048,2655.3,2655.1,3.8]
[1645381529621,1.62333144,2655.4,2655.1,3.8]
[1645381529817,0.00231046,2655.3,2655.1,3.8]
[1645381530479,1.4374419,2655.3,2655.1,3.8]
[1645381530864,1.43513144,2655.3,2655.1,3.8]
[1645381531068,1.4374419,2655.3,2655.1,3.8]
[1645381531268,1.43513144,2655.2,2655.1,3.8]
[1645381531466,1.43513144,2655.2,2655.1,1.99393095]
[1645381531669,6.5,2655.1,2654.0,1.1664]
[1645381531867,0.95568692,2654.9,2654.0,1.1664]
[1645381532066,0.00383289,2654.8,2654.0,1.1664]
[1645381532272,0.00231071,2654.7,2654.4,1.06965906]
[1645381533370,0.95568692,2654.9,2654.0,1.1664]
[1645381533669,0.00383289,2655.0,2654.0,1.1664]
[1645381533670,0.00231071,2654.7,2654.0,1.1664]
[1645381534323,0.00231071,2654.7,2654.2,0.94906846]
[1645381534522,0.95568692,2654.8,2654.2,0.94906846]
[1645381534722,0.00231079,2654.5,2654.2,0.94906846]
[1645381535621,0.95568692,2654.8,2654.2,0.94906846]
[1645381535822,0.00231079,2654.5,2654.2,0.94906846]
[1645381536824,0.95568692,2654.8,2654.2,0.94906846]
[1645381537224,0.00231079,2654.5,2654.2,0.94906846]
[1645381538070,0.95568692,2654.8,2654.2,0.94906846]
[1645381538274,0.00231079,2654.5,2654.2,0.94906846]
[1645381539268,0.00383289,2654.8,2654.2,0.94906846]
[1645381539468,0.00231079,2654.5,2654.2,0.94906846]
[1645381540569,0.00383289,2654.8,2654.0,1.1664]
[1645381540771,0.00231079,2654.5,2654.0,1.1664]
[1645381540972,0.00231079,2654.5,2653.9,7.5359]
[1645381541372,11.51231079,2654.5,2653.9,7.5359]
[1645381541571,1.16165035,2654.3,2653.9,7.5359]
[1645381542030,1.1639612,2654.3,2653.9,7.5359]
[1645381542928,1.16165035,2654.3,2653.9,7.5359]
[1645381543127,0.00231089,2654.2,2653.9,7.5359]
[1645381543327,0.00231089,2654.2,2653.9,11.3359]
[1645381544130,1.16165035,2654.3,2653.9,11.3359]
[1645381544330,0.00231087,2654.2,2653.9,11.3359]
[1645381544729,0.00231087,2654.2,2653.9,7.5359]
[1645381545339,0.95568692,2654.2,2653.9,7.5359]
[1645381545574,11.6982,2654.1,2653.9,7.5359]
[1645381546470,0.1882,2654.1,2653.9,7.5359]
[1645381547267,11.70051085,2654.2,2653.9,7.5359]
[1645381547674,15.63914457,2654.2,2653.9,7.5359]
[1645381547876,23.01,2653.8,2653.4,0.00231161]
[1645381548072,12.04875775,2653.7,2653.4,0.00231161]
[1645381548270,11.51,2653.7,2653.4,0.00231161]
[1645381548470,11.6984,2653.9,2653.4,0.00231161]
[1645381548970,1.13019098,2653.6,2653.2,0.1882]
[1645381549223,0.95568692,2653.8,2653.4,0.00231142]
[1645381549426,0.1884,2653.9,2653.4,0.00231142]
[1645381549927,0.4884,2653.9,2653.4,0.00231142]
[1645381550127,0.4884,2653.9,2652.9,0.00281995]
[1645381550128,11.51,2653.8,2652.9,0.00281995]
[1645381550325,11.51,2653.8,2653.4,0.00231142]
[1645381550528,0.92043629,2653.6,2653.4,0.00231142]
[1645381551330,0.92043629,2653.6,2652.9,0.00281995]
[1645381551627,12.43043629,2653.6,2653.4,0.00231136]
[1645381552433,12.43043629,2653.6,2652.7,0.00281995]
[1645381552632,5.0,2653.3,2652.7,0.00281995]
[1645381552833,19.60068692,2653.2,2653.0,8.947e-05]
[1645381553077,19.60068692,2653.2,2651.7,4.6902]
[1645381553078,0.00071053,2652.6,2651.8,0.00281995]
[1645381553572,0.00071053,2652.6,2651.5,3.50281995]
[1645381553768,0.00071053,2652.6,2651.6,0.00281995]
[1645381554175,0.00071053,2652.6,2652.3,0.88284875]
[1645381554370,0.00071053,2652.6,2652.3,0.8856687]
[1645381554771,0.00071053,2652.6,2652.3,0.00281995]
[1645381554973,0.00071053,2652.6,2651.6,0.00281995]
[1645381555172,0.00071053,2652.6,2652.3,0.00104719]
[1645381555972,0.00071053,2652.6,2651.7,0.00281995]
[1645381556171,0.00071053,2652.6,2652.1,0.98558091]
[1645381556377,0.00071053,2652.6,2652.3,3.60104719]
[1645381556574,0.00071053,2652.6,2652.3,3.60386714]
[1645381557219,0.00071053,2652.6,2652.3,3.60281995]
[1645381557623,0.00071053,2652.6,2652.3,3.60513173]
[1645381558420,0.00071053,2652.6,2652.3,3.60281995]